Cogmind - Beta 13 @@@ ROGUE MODE // 2024.04.26 @ 00:38:07 Player: ToasterKoishi Result: Destroyed by M Guard with Graviton Cannon Performance ------------- Evolutions (9) 4500 Regions Visited (31) 6200 Robots Destroyed (86) 430 Value Destroyed (2988) 2988 Prototype IDs (68) 1360 Alien Tech Used (11) 2200 Bonus (11438) 11438 TOTAL SCORE: 29116 Bonus ------- High Alert Combat Kills 17 Follower Combat Kills 21 Met Data Miner 300 Met Imprinter 300 Met Zhirov 300 Met Warlord at Base 500 MAIN.C Attacked Warlord 500 Met Warlord at Research 2000 Scanned by Researcher 500 Met MAIN.C 5000 Met Warlord at Command 2000 Cogmind --------- Core Integrity 0/1600 Matter 425/425 Energy 100/100 System Corruption 0% Temperature Cool (0) Movement Core (50) Location -1/Command Parts ------- > --- POWER (2) -------- (None) > --- PROPULSION (7) --- (None) > --- UTILITY (14) ----- Experimental Optical Array Advanced Melee Analysis Suite Nanoactuators Graphene Brace Improved Hacking Suite Improved System Shield > --- WEAPON (3) ------- (None) > --- INVENTORY (5) ---- Medium Storage Unit Stasis Canceller Remote Datajack Peak State ------------ > --- POWER ------------ Micro Antimatter Reactor Light Quantum Reactor > --- PROPULSION ------- Diametric Drive Electron Diverter Cooled Impulse Thruster Improved Q-thruster Improved Q-thruster Improved Q-thruster > --- UTILITY ---------- Medium Storage Unit Advanced Gravity Neutralizer Machine Analyzer Experimental Optical Array Experimental Core Analyzer Advanced Transmission Jammer Medium Regenerative Plating Improved Hacking Suite System Mapper System Shield Improved System Shield Advanced System Shield Experimental System Shield > --- WEAPON ----------- Enhanced Nova Cannon Enhanced Force Lance > --- INVENTORY -------- Advanced Melee Analysis Suite Advanced Melee Analysis Suite Improved Armor Integrity Analyzer Nanoactuators Stasis Canceller Advanced Phase Shifter Graphene Brace Sigix Terminator Thunder Hammer [Rating: 178] Favorites ----------- Power Makeshift Power Source Engine Makeshift Power Source Power Core Light Nuclear Core Reactor Micro Antimatter Reactor Propulsion Biomechanical Wings Treads Light Treads Leg Aluminum Leg Wheel Wheel Hover Unit Improved Antigrav System Flight Unit Biomechanical Wings Utility Medium Storage Unit Device Advanced Transmission Jammer Storage Medium Storage Unit Processor Machine Analyzer Hackware System Mapper Protection Improved Utility Shielding Artifact Core Physics Calibrator Weapon Light Assault Rifle Energy Gun Improved Medium Laser Energy Cannon Beam Cannon Ballistic Gun Light Assault Rifle Ballistic Cannon Gauss Cannon Launcher Sigix Terminator Special Weapon Remote Datajack Impact Weapon Power Maul Slashing Weapon Power Sword Piercing Weapon Enhanced Force Lance Build | -11 -10 -10 -10 -9 -8 -7 -7 -7 -7 -6 -6 -6 -6 -5 -5 -5 -5 -5 -4 -4 -4 -4 -4 -3 -3 -3 -2 -2 -2 -1 -1 ------- Run | Yrd Mat Min Exi Min Mat Fac Low Low Zio Pro Fac Low Dat Pro Fac Upp Upp War Pro Fac Upp Upp Zhi Pro Res Qua Res Tes Sec Acc Com Slots Evolved 16 | . . . . . 4 2 . . . . 2 . . . 2 . . . . 2 . . . . 2 . 2 . . . . Power 1 | . . . . . . . . . . . . . . . . . . . . 1 . . . . . . . . . . . Propulsion 4 | . . . . . . 2 . . . . . . . . 1 . . . . . . . . . 1 . . . . . . Utility 11 | . . . . . 4 . . . . . 2 . . . 1 . . . . 1 . . . . 1 . 2 . . . . Weapon . | . . . . . . . . . . . . . . . . . . . . . . . . . . . . . . . . Parts Attached 323 | 6 17 . 4 3 44 22 . . 4 2 18 2 . 2 23 . 1 16 2 35 . 2 8 . 12 9 26 13 19 16 17 Power 38 | 1 2 . 1 . 3 3 . . . . 2 . . . 2 . . 2 . 4 . . 2 . 1 . 8 2 1 4 . Engine 18 | 1 1 . 1 . 3 . . . . . 1 . . . . . . 2 . 4 . . 1 . . . 4 . . . . Core 7 | . 1 . . . . 3 . . . . 1 . . . 2 . . . . . . . . . . . . . . . . Reactor 13 | . . . . . . . . . . . . . . . . . . . . . . . 1 . 1 . 4 2 1 4 . Propulsion 60 | 2 4 . . 1 8 8 . . . . 5 2 . . 8 . . 2 . 7 . . . . 1 1 . 4 . 4 3 Treads 6 | 2 2 . . . 2 . . . . . . . . . . . . . . . . . . . . . . . . . . Leg 1 | . 1 . . . . . . . . . . . . . . . . . . . . . . . . . . . . . . Wheel 6 | . 1 . . 1 4 . . . . . . . . . . . . . . . . . . . . . . . . . . Hover 3 | . . . . . . . . . . . . . . . . . . . . . . . . . . . . . . 3 . Flight 44 | . . . . . 2 8 . . . . 5 2 . . 8 . . 2 . 7 . . . . 1 1 . 4 . 1 3 Utility 143 | 1 6 . 1 . 20 9 . . 2 1 9 . . 1 12 . . 9 . 18 . . 6 . 3 4 12 6 9 7 7 Device 69 | . 4 . . . 10 4 . . 2 . 3 . . . 7 . . 4 . 7 . . 2 . 3 2 6 3 4 5 3 Storage 6 | 1 2 . . . . 1 . . . . . . . . 1 . . . . . . . . . . . . . . 1 . Processor 15 | . . . 1 . 4 2 . . . . . . . . . . . . . 2 . . . . . . 2 . . . 4 Hackware 13 | . . . . . . . . . . 1 2 . . 1 1 . . 1 . 4 . . . . . . 2 . . 1 . Protection 39 | . . . . . 6 2 . . . . 4 . . . 3 . . 4 . 5 . . 4 . . 2 2 3 4 . . Artifact 1 | . . . . . . . . . . . . . . . . . . . . . . . . . . . . . 1 . . Weapon 82 | 2 5 . 2 2 13 2 . . 2 1 2 . . 1 1 . 1 3 2 6 . 2 . . 7 4 6 1 9 1 7 Energy Gun 5 | . . . . . 4 . . . . . . . . . . . . . 1 . . . . . . . . . . . . Energy Cannon 34 | . 2 . 1 . 1 . . . . . . . . . . . 1 1 . 4 . 2 . . 5 3 3 . 9 1 1 Ballistic Gun 10 | 2 2 . 1 1 4 . . . . . . . . . . . . . . . . . . . . . . . . . . Ballistic Cannon 2 | . . . . 1 . . . . . . 1 . . . . . . . . . . . . . . . . . . . . Launcher 5 | . 1 . . . 2 . . . . . . . . . . . . . . . . . . . 1 . . . . . 1 Special Weapon 1 | . . . . . . . . . . . . . . . . . . . . . . . . . . . . . . . 1 Impact Weapon 7 | . . . . . 2 2 . . . . . . . . 1 . . . . . . . . . . . 2 . . . . Slashing Weapon 13 | . . . . . . . . . 1 1 1 . . 1 . . . 2 1 2 . . . . 1 . 1 . . . 2 Piercing Weapon 5 | . . . . . . . . . 1 . . . . . . . . . . . . . . . . 1 . 1 . . 2 Special Melee Weapon . | . . . . . . . . . . . . . . . . . . . . . . . . . . . . . . . . Unidentified Prototypes 34 | . . . 1 . 3 . . . 2 . 1 . . . . . . 5 . . . . 3 . 2 . 7 2 8 . . Parts Lost 68 | . 2 . . 1 10 4 . . . . 1 2 . 1 6 . . . . 4 . . . . . . 1 2 2 9 23 Power 9 | . . . . . 1 1 . . . . 1 . . 1 . . . . . . . . . . . . 1 . 2 . 2 Propulsion 28 | . 2 . . . 4 1 . . . . . 2 . . 5 . . . . . . . . . . . . 2 . 5 7 Utility 26 | . . . . . 5 2 . . . . . . . . . . . . . 3 . . . . . . . . . 4 12 Weapon 5 | . . . . 1 . . . . . . . . . . 1 . . . . 1 . . . . . . . . . . 2 Highest Loss Streak 19 | . 2 . . 1 4 1 . . . . 1 2 . 1 3 . . . . 2 . . . . . . 1 1 1 4 19 To Critical Strikes . | . . . . . . . . . . . . . . . . . . . . . . . . . . . . . . . . Average Slot Usage (%) 89 | . 98 100 72 95 90 82 84 84 84 84 88 93 93 88 82 94 94 97 99 94 94 94 93 94 94 94 97 95 89 82 71 Engine 4 | . 2 . 5 14 9 1 . . . . . . . . . . . 3 5 9 10 10 10 10 4 4 3 . . . . Core 2 | . 11 14 8 . . 1 7 7 7 7 2 6 6 2 1 5 5 1 . . . . . . . . . . . . . Reactor 1 | . . . . . . . . . . . . . . . . . . . . . . . . . 3 4 4 5 7 5 6 Treads 1 | . 22 . . . 2 . . . . . . . . . . . . . . . . . . . . . . . . . . Leg 1 | . 2 14 14 10 . . . . . . . . . . . . . . . . . . . . . . . . . . . Wheel 2 | . 2 14 14 14 8 1 . . . . . . . . . . . . . . . . . . . . . . . . . Flight 17 | . . . . . . 24 30 30 30 30 25 26 26 26 23 29 29 29 29 25 26 26 26 26 28 28 26 25 20 16 16 Device 8 | . 11 14 4 . 16 8 . . . . . . . . 3 5 5 6 5 10 10 10 10 10 13 14 12 8 7 8 11 Storage 6 | . 15 14 14 14 9 7 7 7 7 7 6 6 6 6 4 5 5 5 5 5 5 5 5 5 4 4 4 4 3 3 2 Processor 13 | . . . 9 14 24 21 23 23 23 23 20 20 20 20 13 11 11 11 11 8 10 10 10 10 9 9 8 13 12 8 5 Hackware 12 | . . . . . . . . . . 7 19 20 20 20 21 23 23 23 23 20 21 21 21 21 19 19 25 26 25 25 21 Protection 3 | . . . . . 4 5 7 7 7 7 5 6 6 6 4 5 5 3 5 4 5 5 4 5 4 3 3 3 3 3 . Energy Gun 1 | . . . . . 8 . . . . . . . . . . . . 3 4 1 . . . . . . . . . . . Energy Cannon 1 | . 5 14 . 10 . . . . . . . . . . . . . . . . . . . . . . 3 3 . . . Ballistic Gun 3 | . 22 14 . 14 6 . . . . . . . . . . . . . . . . . . . . . . . . . . Impact Weapon 1 | . . . . . . 7 7 7 1 . . . . . 2 5 5 . . . . . . . . . 1 2 . . . Slashing Weapon 1 | . . . . . . . . . 5 . 6 6 6 6 2 . . 4 4 4 5 5 5 5 4 4 2 . . . 1 Naked Turns . | . . . . . . . . . . . . . . . . . . . . . . . . . . . . . . . . Heaviest Build 64 | 12 52 50 50 52 64 53 20 20 21 21 32 22 22 22 30 30 30 32 28 34 32 32 43 32 39 37 54 63 55 53 62 Greatest Support 69 | 40 40 10 10 28 28 22 21 21 21 21 22 22 22 22 31 31 31 34 34 34 34 34 34 34 41 42 54 65 61 61 69 Greatest Overweight (x) 17 | . 5 4 4 4 17 5 . . . . 4 . . . . . . 1 . 1 . . 1 . . . . 3 . 1 1 Average Overweight (x) . | . 1 4 4 2 3 . . . . . . . . . . . . . . . . . . . . . . . . . . Largest Inventory Capacity 20 | 8 20 20 20 20 20 20 10 10 10 10 10 10 10 10 10 10 10 10 10 10 10 10 10 10 10 10 10 10 10 10 10 Average Capacity 12 | 6 17 20 20 20 20 12 10 10 10 10 10 10 10 10 9 10 10 10 10 10 10 10 10 10 10 10 10 10 10 10 9 Most Carried 20 | 2 14 15 20 20 20 16 10 10 10 10 10 10 8 9 10 9 9 10 10 10 10 10 10 10 10 10 10 10 10 10 10 Average Carried 11 | 1 9 14 18 19 18 10 10 10 9 9 9 9 8 8 9 9 8 9 10 9 10 9 9 10 9 9 9 9 9 9 8 Final Capacity 20 | 8 20 20 20 20 20 10 10 10 10 10 10 10 10 10 10 10 10 10 10 10 10 10 10 10 10 10 10 10 10 10 5 Final Carried 19 | 2 14 15 18 19 14 10 10 10 10 9 10 8 8 8 9 9 9 10 10 10 10 10 10 10 10 10 10 10 9 10 3 Class Distribution -------------------- 27% | Mutant 16% | Wizard-Sprinter 15% | Wizard-Ninja 8% | Hacker-Scout 8% | Sprinter 7% | Hacker-Sprinter Dominant Class ---------------- Mutant | -10/Materials Mutant | -10/Mines Commander-Mutant | -10/Exiles Mutant | -9/Mines Mutant | -8/Materials Sprinter | -7/Factory Sprinter | -7/Lower Caves Sprinter | -7/Lower Caves Sprinter | -7/Zion Sprinter | -6/Proximity Caves Hacker-Sprinter | -6/Factory Hacker-Sprinter | -6/Lower Caves Hacker-Sprinter | -6/Data Miner Hacker-Sprinter | -5/Proximity Caves Hacker-Scout | -5/Factory Hacker-Scout | -5/Upper Caves Hacker-Scout | -5/Upper Caves Hacker-Scout | -5/Warlord Hacker-Scout | -4/Proximity Caves Wizard-Ninja | -4/Factory Wizard-Ninja | -4/Upper Caves Wizard-Ninja | -4/Upper Caves Wizard-Assassin | -4/Zhirov Wizard-Ninja | -3/Proximity Caves Wizard-Ninja | -3/Research Wizard-Ninja | -3/Quarantine Wizard-Sprinter | -2/Research Wizard-Sprinter | -2/Testing Wizard-Sprinter | -2/Section 7 Wizard-Sprinter | -1/Access Wizard-Sprinter | -1/Command Resources | -11 -10 -10 -10 -9 -8 -7 -7 -7 -7 -6 -6 -6 -6 -5 -5 -5 -5 -5 -4 -4 -4 -4 -4 -3 -3 -3 -2 -2 -2 -1 -1 ----------- Run | Yrd Mat Min Exi Min Mat Fac Low Low Zio Pro Fac Low Dat Pro Fac Upp Upp War Pro Fac Upp Upp Zhi Pro Res Qua Res Tes Sec Acc Com Matter Collected 3826 | 260 412 33 36 69 1071 238 2 17 30 20 . 19 . 30 50 24 55 10 20 335 . . . 10 157 108 266 104 13 . 437 Remotely . | . . . . . . . . . . . . . . . . . . . . . . . . . . . . . . . . Salvage Created 3242 | . 471 23 . 98 1370 89 . . . . . . . . 212 . . . . 194 . . . . 76 141 388 167 13 . . Parts 179 | . 25 1 . 6 80 5 . . . . . . . . 14 . . . . 15 . . . . 5 9 11 7 1 . . Haulers Intercepted 7 | . . . . . 3 . . . . . . . . . . . . . . . . . . . . . 4 . . . . Recyclers Shooed 1 | . 1 . . . . . . . . . . . . . . . . . . . . . . . . . . . . . . Parts Field Recycled 30 | . . . . . . 3 . . . . 10 . . . . . . 14 . . . . 3 . . . . . . . . Retrieved Matter 729 | . . . . . . 104 . . . . 245 . . . . . . 310 . . . . 70 . . . . . . . . Parts Self-Destructed . | . . . . . . . . . . . . . . . . . . . . . . . . . . . . . . . . Prevented . | . . . . . . . . . . . . . . . . . . . . . . . . . . . . . . . . Kills | -11 -10 -10 -10 -9 -8 -7 -7 -7 -7 -6 -6 -6 -6 -5 -5 -5 -5 -5 -4 -4 -4 -4 -4 -3 -3 -3 -2 -2 -2 -1 -1 ------- Run | Yrd Mat Min Exi Min Mat Fac Low Low Zio Pro Fac Low Dat Pro Fac Upp Upp War Pro Fac Upp Upp Zhi Pro Res Qua Res Tes Sec Acc Com Combat Hostiles Destroyed 51 | . 12 . . 2 32 1 . . . . . . . . 1 . . . . . . . . . . 1 . 2 . . . Melee 5 | . . . . . . 1 . . . . . . . . 1 . . . . . . . . . . 1 . 2 . . . Guns 36 | . 9 . . 1 26 . . . . . . . . . . . . . . . . . . . . . . . . . . Cannons 9 | . 3 . . 1 5 . . . . . . . . . . . . . . . . . . . . . . . . . . Classes Destroyed 17 | . 4 1 . . 7 1 . . . . . . . . 1 . . . . . . . . . . 1 . 2 . . . Worker 4 | . . 1 . . 1 1 . . . . . . . . . . . . . . . . . . . . . . 1 . . Builder 2 | . . . . . 2 . . . . . . . . . . . . . . . . . . . . . . . . . . Tunneler 1 | . . . . . 1 . . . . . . . . . . . . . . . . . . . . . . . . . . Hauler 7 | . . . . . 3 . . . . . . . . . . . . . . . . . . . . . 4 . . . . Recycler 1 | . . . . . . . . . . . . . . . 1 . . . . . . . . . . . . . . . . Operator 7 | . 1 . . . 2 2 . . . . . . . . 1 . . . . 1 . . . . . . . . . . . Drone 1 | . . . . . . . . . . . . . . . . . . . . . . . . . . 1 . . . . . Watcher 13 | . 1 . . . 3 . . . . . . . . . . . . . . 4 . . . . 2 3 . . . . . Swarmer 9 | . 3 . . . 6 . . . . . . . . . . . . . . . . . . . . . . . . . . Grunt 26 | . 9 . . 2 15 . . . . . . . . . . . . . . . . . . . . . . . . . . Brawler 1 | . . . . . 1 . . . . . . . . . . . . . . . . . . . . . . . . . . Duelist 2 | . . . . . 2 . . . . . . . . . . . . . . . . . . . . . . . . . . Researcher 1 | . . . . . . . . . . . . . . . . . . . . . . . . . . . . 1 . . . Sentry 7 | . . . . . 7 . . . . . . . . . . . . . . . . . . . . . . . . . . Hunter 1 | . . . . . 1 . . . . . . . . . . . . . . . . . . . . . . . . . . Programmer 3 | . . . . . . 1 . . . . . . . . 1 . . . . . . . . . . . . 1 . . . Fireman 1 | . . . . . . . . . . . . . . . . . . . . . . . . . . . . 1 . . . Best Kill Streak 6 | . 4 1 . 2 6 2 . . . . . . . . 1 . . . . 1 . . . . 1 1 1 2 1 . . Combat Bots Only 6 | . 3 . . 2 6 1 . . . . . . . . 1 . . . . . . . . . . 1 . 2 . . . Max Kills in Single Turn 2 | . 2 1 . 1 1 1 . . . . . . . . 1 . . . . 1 . . . . 1 1 1 1 1 . . Gunslinging . | . . . . . . . . . . . . . . . . . . . . . . . . . . . . . . . . Exploded . | . . . . . . . . . . . . . . . . . . . . . . . . . . . . . . . . Melee 1 | . . . . . . 1 . . . . . . . . 1 . . . . . . . . . . 1 . 1 . . . Uniques/NPCs Destroyed . | . . . . . . . . . . . . . . . . . . . . . . . . . . . . . . . . Combat | -11 -10 -10 -10 -9 -8 -7 -7 -7 -7 -6 -6 -6 -6 -5 -5 -5 -5 -5 -4 -4 -4 -4 -4 -3 -3 -3 -2 -2 -2 -1 -1 -------- Run | Yrd Mat Min Exi Min Mat Fac Low Low Zio Pro Fac Low Dat Pro Fac Upp Upp War Pro Fac Upp Upp Zhi Pro Res Qua Res Tes Sec Acc Com Hostile Shots Fired 1065 | . 67 . . 7 188 81 3 9 . 2 95 21 . 21 61 . 14 . 11 35 10 . . . 4 10 26 44 88 166 102 Missed 476 | . 19 . . 2 45 46 3 6 . . 52 11 . 13 22 . 8 . 6 19 5 . . . 3 8 13 14 45 97 39 Damage Taken 11872 | . 540 4 . 147 2050 699 . 27 . 39 451 142 . 157 824 . 79 . 92 539 99 . . . 19 40 244 507 1132 1334 2707 Core 3823 | . 105 . . 34 363 237 . 27 . 39 207 53 . 55 519 . 23 . 14 137 18 . . . . . 54 45 280 230 1383 Absorbed by Shields 267 | . . . . . . . . . . . . . . . . . . . . . . . . . . . . . . . 267 Redirected to Shielding 178 | . . . . . 31 54 . . . . 22 8 . 13 50 . . . . . . . . . . . . . . . . Regen/Repaired (Parts) 1328 | . . . . . . . . . 5 . 130 . . . . . . 55 . 356 . . . . . 134 . 30 241 342 35 Core Remaining (%) 65 | 100 . . . 44 34 . . . . 56 . . . 62 . . . . 44 . . . . 86 . 100 . . 67 . . Volleys Fired 243 | . 46 1 . 7 117 . . . . . 4 . . . . . 1 . . 8 . 9 . . 20 5 3 6 13 2 1 Largest 2 | . 2 2 . 2 2 . . . . . 1 . . . . . 1 . . 1 . 1 . . 1 1 1 1 1 1 1 Hottest 122 | . 120 80 . 80 122 . . . . . 48 . . . . . 90 . . 98 . 98 . . 98 98 120 120 120 120 . Shots Fired 418 | . 92 2 . 15 236 . . . . . 4 . . . . . 1 . . 8 . 9 . . 20 5 3 7 13 2 1 Gun 283 | . 70 1 . 7 205 . . . . . . . . . . . . . . . . . . . . . . . . . . Cannon 134 | . 22 1 . 8 31 . . . . . 4 . . . . . 1 . . 8 . 9 . . 20 5 3 7 13 2 . Launcher 1 | . . . . . . . . . . . . . . . . . . . . . . . . . . . . . . . 1 Special . | . . . . . . . . . . . . . . . . . . . . . . . . . . . . . . . . Kinetic 208 | . 70 1 . 8 125 . . . . . 4 . . . . . . . . . . . . . . . . . . . . Thermal 210 | . 22 1 . 7 111 . . . . . . . . . . . 1 . . 8 . 9 . . 20 5 3 7 13 2 1 Explosive . | . . . . . . . . . . . . . . . . . . . . . . . . . . . . . . . . Electromagnetic . | . . . . . . . . . . . . . . . . . . . . . . . . . . . . . . . . Robot Hit Streak 36 | . 7 1 . 6 36 . . . . . . . . . . . . . . . . . . . . . . . . . 1 Robot Miss Streak 6 | . 6 1 . 2 4 . . . . . . . . . . . . . . . . . . . . . . 2 . . . Penetration Max . | . . . . . . . . . . . . . . . . . . . . . . . . . . . . . . . . Secondary Targets 1 | . . . . . 1 . . . . . . . . . . . . . . . . . . . . . . . . . . Max Gunslinging Chain 1 | . . . . . 1 . . . . . . . . . . . . . . . . . . . . . . . . . . Shots Hit Robots 321 | . 52 1 . 9 193 7 . . . . 1 . . . 6 . . . . 12 . . . . 6 7 9 4 1 . 13 Core Hits 141 | . 27 1 . 3 83 1 . . . . . . . . 2 . . . . 6 . . . . 2 5 3 2 . . 6 Critical Kills 1 | . . . . . . . . . . . . . . . . . . . . . . . . . . . . 1 . . . Critical Parts Destroyed 6 | . . . . . 2 2 . . . . . . . . . . . . . . . . . . . . 1 1 . . . Critical Strikes 16 | . . . . . 8 2 . . . . . . . . . . . . . 1 . . . . . 1 2 2 . . . Burn 6 | . . . . . 6 . . . . . . . . . . . . . . . . . . . . . . . . . . Destroy 2 | . . . . . 2 . . . . . . . . . . . . . . . . . . . . . . . . . . Smash 5 | . . . . . . 2 . . . . . . . . . . . . . . . . . . . . 1 2 . . . Sever 3 | . . . . . . . . . . . . . . . . . . . . 1 . . . . . 1 1 . . . . Melee Attacks 311 | . . . . . . 38 . . 1 . 11 1 . 2 44 . 2 . . 55 . 5 . . 28 24 28 11 19 27 15 Impact 80 | . . . . . . 38 . . 1 . . . . . 20 . 2 . . . . . . . . . 9 10 . . . Slashing 172 | . . . . . . . . . . . 11 1 . 2 24 . . . . 55 . 5 . . 28 24 19 . . . 3 Piercing 59 | . . . . . . . . . . . . . . . . . . . . . . . . . . . . 1 19 27 12 Sneak Attacks 14 | . . . . . . 2 . . . . . . . . 1 . . . . 2 . . . . 2 1 4 1 1 . . Combat Hostiles . | . . . . . . . . . . . . . . . . . . . . . . . . . . . . . . . . Follow-up Attacks 3 | . . . . . . . . . . . . . . . . . . . . . . . . . . . . . . . 3 Damage Inflicted 9543 | . 499 18 . 118 4013 530 . . . . 53 . . . 356 . . . . 622 . . . . 368 400 689 246 124 . 1507 Guns 3945 | . 375 10 . 47 3513 . . . . . . . . . . . . . . . . . . . . . . . . . . Cannons 693 | . 122 . . 71 500 . . . . . . . . . . . . . . . . . . . . . . . . . . Explosions 1084 | . . . . . . 84 . . . . . . . . . . . . . . . . . . . . . . . . 1000 Melee 3811 | . . . . . . 446 . . . . 53 . . . 356 . . . . 622 . . . . 368 400 689 246 124 . 507 Ramming 10 | . 2 8 . . . . . . . . . . . . . . . . . . . . . . . . . . . . . Kinetic 2838 | . 375 10 . 47 2406 . . . . . . . . . . . . . . . . . . . . . . . . . . Thermal 2884 | . 122 . . 71 1607 84 . . . . . . . . . . . . . . . . . . . . . . . . 1000 Explosive . | . . . . . . . . . . . . . . . . . . . . . . . . . . . . . . . . Electromagnetic . | . . . . . . . . . . . . . . . . . . . . . . . . . . . . . . . . Impact 947 | . . . . . . 446 . . . . . . . . . . . . . . . . . . . . 255 246 . . . Slashing 2316 | . . . . . . . . . . . 53 . . . 356 . . . . 622 . . . . 368 400 434 . . . 83 Piercing 548 | . . . . . . . . . . . . . . . . . . . . . . . . . . . . . 124 . 424 Highest Corruption 7 | . 1 2 2 2 5 1 1 1 1 . 1 1 1 1 5 . . . . 7 2 2 2 2 . . 2 4 4 . . Average Corruption 2 | . 1 1 2 2 4 1 1 1 1 . 1 1 1 1 2 . . . . 5 2 2 2 2 . . 2 2 3 . . Corruption Purged 19 | . . . . . . . . . . . . . . . 8 . . . . 7 . . . . . . . . 4 . . Corruption Blocked 51 | . . . . . . . . . . . . . . . . . . . . . . . . . . . 36 . . . 15 Effects 145 | . 2 3 8 7 72 11 . 2 . . 5 1 . 1 6 . . . . 3 3 2 . 3 . . 5 6 5 . . Message Errors 42 | . 2 . 3 2 18 6 . . . . 2 . . . 1 . . . . 1 1 . . 2 . . . 1 3 . . Matter Fused 38 | . . 2 2 2 23 . . 1 . . 1 1 . . 1 . . . . . . . . . . . 3 2 . . . Heat Flow Errors 21 | . . 1 3 . 5 2 . 1 . . 1 . . . 2 . . . . 2 1 2 . . . . 1 . . . . Energy Discharges 13 | . . . . 1 7 . . . . . . . . . 1 . . . . . . . . 1 . . 1 1 1 . . Parts Fused 2 | . . . . . . 1 . . . . . . . . 1 . . . . . . . . . . . . . . . . Data Loss (minor) 14 | . . . . 1 7 1 . . . . 1 . . 1 . . . . . . 1 . . . . . . 1 1 . . Data Loss (major) 5 | . . . . . 4 1 . . . . . . . . . . . . . . . . . . . . . . . . . Misfires 6 | . . . . 1 4 . . . . . . . . . . . . . . . . . . . . . . 1 . . . Alerts 2 | . . . . . 2 . . . . . . . . . . . . . . . . . . . . . . . . . . Weapon Failures 2 | . . . . . 2 . . . . . . . . . . . . . . . . . . . . . . . . . . Overload Shots . | . . . . . . . . . . . . . . . . . . . . . . . . . . . . . . . . Overflow Damage 919 | . . . . . 4 386 . . . . 23 . . . 64 . . . . 67 . . . . 72 53 93 73 84 . . Projectiles 4 | . . . . . 4 . . . . . . . . . . . . . . . . . . . . . . . . . . Explosions 138 | . . . . . . 138 . . . . . . . . . . . . . . . . . . . . . . . . . Melee 777 | . . . . . . 248 . . . . 23 . . . 64 . . . . 67 . . . . 72 53 93 73 84 . . Knockbacks 8 | . . . . . 4 3 . . . . . . . . . . . . . . . . . . . . . 1 . . . Impact 4 | . . . . . . 3 . . . . . . . . . . . . . . . . . . . . . 1 . . . Kinetic 4 | . . . . . 4 . . . . . . . . . . . . . . . . . . . . . . . . . . Secondary . | . . . . . . . . . . . . . . . . . . . . . . . . . . . . . . . . Self-Inflicted Damage 156 | . . 4 . . . 152 . . . . . . . . . . . . . . . . . . . . . . . . . Shots 2 | . . . . . . 2 . . . . . . . . . . . . . . . . . . . . . . . . . Rammed 2 | . 1 1 . . . . . . . . . . . . . . . . . . . . . . . . . . . . . Targets Rammed 2 | . 1 1 . . . . . . . . . . . . . . . . . . . . . . . . . . . . . Kicked . | . . . . . . . . . . . . . . . . . . . . . . . . . . . . . . . . Crushed . | . . . . . . . . . . . . . . . . . . . . . . . . . . . . . . . . Highest Temperature 432 | . 174 92 268 235 199 227 . 261 . 3 250 . . . 262 . 34 . . 250 269 357 . . 432 . 279 351 246 76 . Average Temperature 85 | . 41 38 124 89 63 118 . 145 . 3 105 . . . 120 . 19 . . 84 180 109 . . 84 . 79 125 69 45 . Received Heat Transfer 1953 | . 258 . . 45 846 45 . 9 . 18 114 . . 75 66 . 9 . . 48 . . . . . 12 27 63 54 9 255 Effects 8 | . . . . 3 . . . 1 . . . . . . . . . . . . . . . . 3 . 1 . . . . Shutdowns 2 | . . . . . . . . . . . . . . . . . . . . . . . . . 2 . . . . . . Energy Bleed 1 | . . . . . . . . 1 . . . . . . . . . . . . . . . . . . . . . . . Interference 4 | . . . . 3 . . . . . . . . . . . . . . . . . . . . . . 1 . . . . Matter Decay 1 | . . . . . . . . . . . . . . . . . . . . . . . . . 1 . . . . . . Siege Activations . | . . . . . . . . . . . . . . . . . . . . . . . . . . . . . . . . Robots Corrupted . | . . . . . . . . . . . . . . . . . . . . . . . . . . . . . . . . Combat Hostiles . | . . . . . . . . . . . . . . . . . . . . . . . . . . . . . . . . Parts Fried 6 | . . . . . . 4 . . . . . . . . . . . . . . . . . . . . 2 . . . . Impact Corruptions 12 | . . . . . . 9 . . . . . . . . . . . . . . . . . . . . 2 1 . . . Robots Melted 1 | . . . . . 1 . . . . . . . . . . . . . . . . . . . . . . . . . . Combat Hostiles 1 | . . . . . 1 . . . . . . . . . . . . . . . . . . . . . . . . . . Parts Melted 7 | . 1 . . . 4 1 . . . . . . . . 1 . . . . . . . . . . . . . . . . Heat Transferred 4446 | . 259 . . 148 3959 50 . . . . . . . . . . . . . . . . . . . . . . . . 30 Parts Sabotaged . | . . . . . . . . . . . . . . . . . . . . . . . . . . . . . . . . Parts Stolen . | . . . . . . . . . . . . . . . . . . . . . . . . . . . . . . . . Parts Stripped . | . . . . . . . . . . . . . . . . . . . . . . . . . . . . . . . . Power Chain Reactions . | . . . . . . . . . . . . . . . . . . . . . . . . . . . . . . . . Alert | -11 -10 -10 -10 -9 -8 -7 -7 -7 -7 -6 -6 -6 -6 -5 -5 -5 -5 -5 -4 -4 -4 -4 -4 -3 -3 -3 -2 -2 -2 -1 -1 ------- Run | Yrd Mat Min Exi Min Mat Fac Low Low Zio Pro Fac Low Dat Pro Fac Upp Upp War Pro Fac Upp Upp Zhi Pro Res Qua Res Tes Sec Acc Com Peak Influence 2441 | . 172 5 . 124 386 743 . . . . 442 . . . 568 . . . . 638 . . . . 240 215 368 659 535 611 2441 Initial 600 | . . . . . . 144 . . . . . . . . 168 . . . . 600 . . . . . 45 63 156 370 255 261 Average 264 | . 70 . . 68 235 347 . . . . 303 . . . 359 . . . . 362 . . . . 75 95 218 323 300 462 434 Maximum Alert Level 5 | . . . . . 1 3 . . . . 2 . . . 2 . . . . 2 . . . . 1 1 1 2 2 2 5 Low Security (%) 40 | 100 100 100 . 100 37 28 . . . . 10 . . . 20 . . . . 2 . . . . 92 98 49 8 20 . 40 Level 1 42 | . . . . . 62 34 . . . . 81 . . . 29 . . . . 74 . . . . 7 1 50 64 63 13 49 Level 2 16 | . . . . . . 36 . . . . 8 . . . 49 . . . . 22 . . . . . . . 26 15 86 . Level 3 . | . . . . . . . . . . . . . . . . . . . . . . . . . . . . . . . . Level 4 . | . . . . . . . . . . . . . . . . . . . . . . . . . . . . . . . . Level 5 . | . . . . . . . . . . . . . . . . . . . . . . . . . . . . . . . 9 High Security . | . . . . . . . . . . . . . . . . . . . . . . . . . . . . . . . . Max Security . | . . . . . . . . . . . . . . . . . . . . . . . . . . . . . . . . Squads Dispatched 55 | . 2 . . 1 6 8 . . . . 5 . . . 7 . 1 . . 4 . . . . 3 2 . 6 4 3 3 Investigation 14 | . . . . 1 . 4 . . . . 2 . . . 2 . . . . 1 . . . . 1 . . . 1 2 . Extermination 18 | . . . . . . 3 . . . . 2 . . . 2 . . . . 2 . . . . 2 2 . 1 3 . 1 Reinforcement 19 | . 2 . . . 3 1 . . . . 1 . . . 3 . . . . 1 . . . . . . . 5 . 1 2 Assault 1 | . . . . . . . . . . . . . . . . . 1 . . . . . . . . . . . . . . Garrison 3 | . . . . . 3 . . . . . . . . . . . . . . . . . . . . . . . . . . Intercept . | . . . . . . . . . . . . . . . . . . . . . . . . . . . . . . . . Searches Triggered 6 | . . . . . . 1 . . . . . . . . . . . . . 2 . . . . . . . . 1 2 . Construction Impeded . | . . . . . . . . . . . . . . . . . . . . . . . . . . . . . . . . Haulers Reinforced . | . . . . . . . . . . . . . . . . . . . . . . . . . . . . . . . . Active Scanning Responses . | . . . . . . . . . . . . . . . . . . . . . . . . . . . . . . . . Cargo Convoy Interrupts 1 | . . . . . . . . . . . . . . . 1 . . . . . . . . . . . . . . . . Stealth | -11 -10 -10 -10 -9 -8 -7 -7 -7 -7 -6 -6 -6 -6 -5 -5 -5 -5 -5 -4 -4 -4 -4 -4 -3 -3 -3 -2 -2 -2 -1 -1 --------- Run | Yrd Mat Min Exi Min Mat Fac Low Low Zio Pro Fac Low Dat Pro Fac Upp Upp War Pro Fac Upp Upp Zhi Pro Res Qua Res Tes Sec Acc Com Distress Signals 37 | . 3 . . . 2 4 . . . . . . . . 2 . . . 1 5 . . . . 1 1 8 3 . 4 3 Communications Jammed 177 | . . . . . . . . . . . . . . . . . . . . . . . . . . 53 27 . 80 17 . Distress Signals 116 | . . . . . . . . . . . . . . . . . . . . . . . . . . 11 8 . 80 17 . Times Spotted 568 | . 23 . . 5 53 60 3 3 . 4 41 6 . 7 41 . 10 . 9 36 2 . . . 9 17 20 28 48 88 55 Peak Tracking Total 16 | . 5 . . 3 7 11 4 3 . 4 13 3 . 6 10 . 11 . 7 10 2 . . . 7 5 6 11 16 12 7 Tactical Retreats 97 | . 1 . . 1 2 16 . . . . 15 1 . 2 18 . 5 . . 10 . . . . 3 5 6 3 8 . 1 Traps | -11 -10 -10 -10 -9 -8 -7 -7 -7 -7 -6 -6 -6 -6 -5 -5 -5 -5 -5 -4 -4 -4 -4 -4 -3 -3 -3 -2 -2 -2 -1 -1 ------- Run | Yrd Mat Min Exi Min Mat Fac Low Low Zio Pro Fac Low Dat Pro Fac Upp Upp War Pro Fac Upp Upp Zhi Pro Res Qua Res Tes Sec Acc Com Traps Triggered 15 | . 3 . . . 1 3 . . . . 1 . . . 1 . . . . 4 . . . . 1 . . . . 1 . Indirectly . | . . . . . . . . . . . . . . . . . . . . . . . . . . . . . . . . Trap Hack Attempts . | . . . . . . . . . . . . . . . . . . . . . . . . . . . . . . . . Triggered . | . . . . . . . . . . . . . . . . . . . . . . . . . . . . . . . . Disarmed . | . . . . . . . . . . . . . . . . . . . . . . . . . . . . . . . . Reprogrammed . | . . . . . . . . . . . . . . . . . . . . . . . . . . . . . . . . Reused . | . . . . . . . . . . . . . . . . . . . . . . . . . . . . . . . . Traps Extracted . | . . . . . . . . . . . . . . . . . . . . . . . . . . . . . . . . Installed . | . . . . . . . . . . . . . . . . . . . . . . . . . . . . . . . . Triggered 14 | . . . . . . . . . . . . . . . 2 . . 12 . . . . . . . . . . . . . Machines | -11 -10 -10 -10 -9 -8 -7 -7 -7 -7 -6 -6 -6 -6 -5 -5 -5 -5 -5 -4 -4 -4 -4 -4 -3 -3 -3 -2 -2 -2 -1 -1 ---------- Run | Yrd Mat Min Exi Min Mat Fac Low Low Zio Pro Fac Low Dat Pro Fac Upp Upp War Pro Fac Upp Upp Zhi Pro Res Qua Res Tes Sec Acc Com Machines Disabled 22 | . 1 . . . 1 5 . . . . . . . . . . 1 . . 1 . . . . . 1 . 3 8 1 . Max in Single Turn 5 | . 1 . . . 1 5 . . . . . . . . . . 1 . . 1 . . . . . 1 . 1 1 1 . Garrison Access 9 | . . . . . . . . . . . . . . . 1 . . . . 2 . . . . 1 1 2 1 . 1 . Machines Repaired . | . . . . . . . . . . . . . . . . . . . . . . . . . . . . . . . . Machines Dismantled . | . . . . . . . . . . . . . . . . . . . . . . . . . . . . . . . . Machines Sabotaged . | . . . . . . . . . . . . . . . . . . . . . . . . . . . . . . . . Overloaded Fab Kills . | . . . . . . . . . . . . . . . . . . . . . . . . . . . . . . . . Hacking | -11 -10 -10 -10 -9 -8 -7 -7 -7 -7 -6 -6 -6 -6 -5 -5 -5 -5 -5 -4 -4 -4 -4 -4 -3 -3 -3 -2 -2 -2 -1 -1 --------- Run | Yrd Mat Min Exi Min Mat Fac Low Low Zio Pro Fac Low Dat Pro Fac Upp Upp War Pro Fac Upp Upp Zhi Pro Res Qua Res Tes Sec Acc Com Machines Accessed 144 | . 3 . 1 1 9 12 1 . . . 12 . 4 . 12 . . 5 . 19 2 1 9 . 4 12 6 6 14 7 4 Terminals 74 | . 3 . . . 4 4 . . . . 9 . . . 6 . . . . 9 . . . . 3 10 4 3 12 4 3 Fabricators 5 | . . . . . . 3 . . . . . . . . 2 . . . . . . . . . . . . . . . . Repair Stations 12 | . . . . . 1 2 . . . . 1 . . . 1 . . . . 4 . . . . . 1 . . . 1 1 Recycling Units 7 | . . . . . 2 . . . . . 1 . . . 2 . . . . 2 . . . . . . . . . . . Scanalyzers 9 | . . . . . 1 1 . . . . 1 . . . . . . . . 2 . . . . . . . 2 2 . . Garrison Access 13 | . . . . . 1 2 . . . . . . . . 1 . . . . 2 . . . . 1 1 2 1 . 2 . Total Hacks 505 | . 7 . 1 1 16 28 1 . . . 40 . 27 . 41 . . 9 . 64 7 1 48 . 13 40 22 18 64 37 20 Successful 286 | . 3 . 1 1 4 9 1 . . . 20 . 27 . 15 . . 9 . 39 7 1 48 . 8 14 11 14 30 17 7 Failed 219 | . 4 . . . 12 19 . . . . 20 . . . 26 . . . . 25 . . . . 5 26 11 4 34 20 13 Catastrophic 35 | . 1 . . . 2 3 . . . . 5 . . . 5 . . . . 3 . . . . 2 4 1 . 6 1 2 Database Lockouts . | . . . . . . . . . . . . . . . . . . . . . . . . . . . . . . . . Manual 111 | . 1 . 1 . 4 4 . . . . 15 . . . 22 . 1 1 . 21 . . . . 3 10 5 . 17 6 . Terminals 269 | . 7 . . . 7 8 . . . . 29 . . . 22 . . . . 27 . . . . 12 33 17 8 57 25 17 Fabricators 14 | . . . . . . 8 . . . . . . . . 6 . . . . . . . . . . . . . . . . Repair Stations 45 | . . . . . 2 4 . . . . 6 . . . 4 . . . . 18 . . . . . 2 . . . 6 3 Recycling Units 15 | . . . . . 2 . . . . . 1 . . . 8 . . . . 4 . . . . . . . . . . . Scanalyzers 38 | . . . . . 3 3 . . . . 4 . . . . . . . . 13 . . . . . . . 8 7 . . Garrison Access 29 | . . . . . 2 5 . . . . . . . . 1 . . . . 2 . . . . 1 5 5 2 . 6 . Terminal Hacks 199 | . 3 . 1 1 1 2 1 . . . 7 . 27 . 6 . . 9 . 9 7 1 48 . 7 10 8 6 27 13 5 Record 71 | . . . 1 . . . 1 . . . . . 11 . . . . 7 . . 6 . 36 . 1 2 1 1 . 4 . Part Schematic 14 | . . . . . . . . . . . . . 9 . . . . . . . . . 4 . . . . 1 . . . Robot Schematic 4 | . . . . . . . . . . . . . 4 . . . . . . . . . . . . . . . . . . Robot Analysis 4 | . . . . . . . . . . . . . . . . . . . . . . . 4 . . . . . . . . Prototype ID Bank 10 | . . . . . . . . . . . . . 3 . . . . . . . . . 4 . . 1 1 . 1 . . Open Door 12 | . . . . 1 . . . . . . . . . . . . . 2 . . 1 1 . . . 1 . 1 4 . 1 Level Access Points 4 | . . . . . . . . . . . . . . . . . . . . . . . . . 1 1 1 . 1 . . Branch Access Points 4 | . . . . . . 1 . . . . 1 . . . . . . . . . . . . . 1 . 1 . . . . Emergency Access Points 2 | . . . . . . 1 . . . . . . . . . . . . . . . . . . . . . . 1 . . Machine Index 1 | . . . . . . . . . . . . . . . . . . . . . . . . . . . . . . 1 . Terminal Index 1 | . . . . . . . . . . . . . . . . . . . . . . . . . . . . . . . 1 Garrison Index 1 | . . . . . . . . . . . . . . . . . . . . 1 . . . . . . . . . . . Alert Level 10 | . 1 . . . . . . . . . 1 . . . . . . . . 2 . . . . . 2 . . 2 2 . Unreport Threat 7 | . . . . . 1 . . . . . 1 . . . 1 . . . . 2 . . . . . . . . 2 . . Locate Traps 2 | . . . . . . . . . . . . . . . . . . . . . . . . . . . 1 . 1 . . Dispatch Records 1 | . . . . . . . . . . . . . . . . . . . . . . . . . . . . . 1 . . Maintenance Status 1 | . . . . . . . . . . . . . . . . . . . . . . . . . . . . . . 1 . Security Status 2 | . . . . . . . . . . . 1 . . . . . . . . . . . . . . 1 . . . . . Surveillance Status 4 | . . . . . . . . . . . 1 . . . . . . . . 1 . . . . . . 1 . 1 . . Patrol Status 3 | . . . . . . . . . . . 1 . . . . . . . . 1 . . . . . . . . 1 . . Transport Status 2 | . 1 . . . . . . . . . . . . . . . . . . . . . . . . . . . . . 1 Recall Investigation 1 | . . . . . . . . . . . . . . . . . . . . . . . . . . . . . 1 . . Recall Extermination 9 | . . . . . . . . . . . 1 . . . 2 . . . . 1 . . . . 2 . . . 3 . . Recall Reinforcements 3 | . . . . . . . . . . . . . . . 2 . . . . 1 . . . . . . . . . . . Recall Assault 1 | . . . . . . . . . . . . . . . . . . . . . . . . . . . . 1 . . . Hauler Manifests 4 | . 1 . . . . . . . . . . . . . . . . . . . . . . . . . 1 . 1 1 . Registered Components 6 | . . . . . . . . . . . . . . . 1 . . . . . . . . . 1 1 . . 1 1 1 Registered Prototypes 2 | . . . . . . . . . . . . . . . . . . . . . . . . . 1 . 1 . . . . Zone Layout 10 | . . . . . . . . . . . . . . . . . . . . . . . . . . 1 . 1 5 3 . Protovariant Controls 1 | . . . . . . . . . . . . . . . . . . . . . . . . . . . . 1 . . . Activate Exoskeleton 1 | . . . . . . . . . . . . . . . . . . . . . . . . . . . . . 1 . . Disengage Seal 1 | . . . . . . . . . . . . . . . . . . . . . . . . . . . . . . . 1 Fabricator Hacks 7 | . . . . . . 3 . . . . . . . . 4 . . . . . . . . . . . . . . . . Load Schematic 4 | . . . . . . 2 . . . . . . . . 2 . . . . . . . . . . . . . . . . Build 3 | . . . . . . 1 . . . . . . . . 2 . . . . . . . . . . . . . . . . Repair Station Hacks 26 | . . . . . 1 1 . . . . 6 . . . . . . . . 11 . . . . . 2 . . . 3 2 Scan Component 15 | . . . . . 1 1 . . . . 3 . . . . . . . . 6 . . . . . 1 . . . 2 1 Repair 11 | . . . . . . . . . . . 3 . . . . . . . . 5 . . . . . 1 . . . 1 1 Recycling Unit Hacks . | . . . . . . . . . . . . . . . . . . . . . . . . . . . . . . . . Scanalyzer 29 | . . . . . 1 2 . . . . 4 . . . . . . . . 12 . . . . . . . 7 3 . . Insert Component 19 | . . . . . 1 1 . . . . 3 . . . . . . . . 5 . . . . . . . 6 3 . . Analyze 10 | . . . . . . 1 . . . . 1 . . . . . . . . 7 . . . . . . . 1 . . . Garrison Access Hacks 9 | . . . . . . . . . . . . . . . 1 . . . . 2 . . . . 1 1 2 1 . 1 . Seal Access 9 | . . . . . . . . . . . . . . . 1 . . . . 2 . . . . 1 1 2 1 . 1 . Unauthorized Hacks 16 | . . . . . 1 1 . . . . 3 . . . 4 . . . . 5 . . . . . 1 1 . . . . Terminals 7 | . . . . . . . . . . . 2 . . . 1 . . . . 2 . . . . . 1 1 . . . . Assimilate 7 | . . . . . . . . . . . 2 . . . 1 . . . . 2 . . . . . 1 1 . . . . Fabricators 1 | . . . . . . 1 . . . . . . . . . . . . . . . . . . . . . . . . . Report 1 | . . . . . . 1 . . . . . . . . . . . . . . . . . . . . . . . . . Repair Stations . | . . . . . . . . . . . . . . . . . . . . . . . . . . . . . . . . Recycling Units 8 | . . . . . 1 . . . . . 1 . . . 3 . . . . 3 . . . . . . . . . . . Monitor 1 | . . . . . . . . . . . . . . . . . . . . 1 . . . . . . . . . . . Reject 2 | . . . . . . . . . . . . . . . 1 . . . . 1 . . . . . . . . . . . Mask 5 | . . . . . 1 . . . . . 1 . . . 2 . . . . 1 . . . . . . . . . . . Scanalyzers . | . . . . . . . . . . . . . . . . . . . . . . . . . . . . . . . . Garrison Access . | . . . . . . . . . . . . . . . . . . . . . . . . . . . . . . . . Data Cores Recovered 2 | . . . . . 1 . . . . . . . . . 1 . . . . . . . . . . . . . . . . Used . | . . . . . . . . . . . . . . . . . . . . . . . . . . . . . . . . Hacking Detections 84 | . 3 . . . 8 11 . . . . 10 . . . 8 . . . . 11 . . . . 2 11 3 2 8 5 2 Full Trace Events 11 | . . . . . . 3 . . . . 2 . . . 2 . . . . . . . . . 1 . . . 1 2 . Feedback Events 1 | . . . . . . . . . . . 1 . . . . . . . . . . . . . . . . . . . . Corruption 1 | . . . . . . . . . . . 1 . . . . . . . . . . . . . . . . . . . . Feedback Blocked 1 | . . . . . . . . . . . 1 . . . . . . . . . . . . . . . . . . . . Robot Schematics Acquired 10 | . . . . . . . . . 4 . . . 4 . . . . . . . . . . . . . . 2 . . . Robots Built . | . . . . . . . . . . . . . . . . . . . . . . . . . . . . . . . . Authchips . | . . . . . . . . . . . . . . . . . . . . . . . . . . . . . . . . Time . | . . . . . . . . . . . . . . . . . . . . . . . . . . . . . . . . Total Robot Build Rating . | . . . . . . . . . . . . . . . . . . . . . . . . . . . . . . . . Part Schematics Acquired 43 | . . . . . . 1 . . 14 . 1 . 9 . . . . . . 4 . . 4 . . . . 10 . . . Parts Built 3 | . . . . . . 1 . . . . . . . . 2 . . . . . . . . . . . . . . . . Authchips . | . . . . . . . . . . . . . . . . . . . . . . . . . . . . . . . . Time 344 | . . . . . . 116 . . . . . . . . 228 . . . . . . . . . . . . . . . . Total Part Build Rating 13 | . . . . . . 3 . . . . . . . . 10 . . . . . . . . . . . . . . . . Parts Repaired 11 | . . . . . . . . . . . 3 . . . . . . . . 5 . . . . . 1 . . . 1 1 Time 462 | . . . . . . . . . . . 158 . . . . . . . . 217 . . . . . 16 . . . 49 22 Parts Recycled . | . . . . . . . . . . . . . . . . . . . . . . . . . . . . . . . . Recycled Matter . | . . . . . . . . . . . . . . . . . . . . . . . . . . . . . . . . Retrieved Matter . | . . . . . . . . . . . . . . . . . . . . . . . . . . . . . . . . Retrieved Components . | . . . . . . . . . . . . . . . . . . . . . . . . . . . . . . . . Parts Scanalyzed 9 | . . . . . 1 1 . . . . 1 . . . . . . . . 5 . . . . . . . 1 . . . Part Schematics Acquired 7 | . . . . . . 1 . . . . 1 . . . . . . . . 4 . . . . . . . 1 . . . Parts Damaged 2 | . . . . . . . . . . . . . . . . . . . . 1 . . . . . . . 1 . . . Bothacking | -11 -10 -10 -10 -9 -8 -7 -7 -7 -7 -6 -6 -6 -6 -5 -5 -5 -5 -5 -4 -4 -4 -4 -4 -3 -3 -3 -2 -2 -2 -1 -1 ------------ Run | Yrd Mat Min Exi Min Mat Fac Low Low Zio Pro Fac Low Dat Pro Fac Upp Upp War Pro Fac Upp Upp Zhi Pro Res Qua Res Tes Sec Acc Com Used RIF Installer . | . . . . . . . . . . . . . . . . . . . . . . . . . . . . . . . . Robots Hacked . | . . . . . . . . . . . . . . . . . . . . . . . . . . . . . . . . Non-combat . | . . . . . . . . . . . . . . . . . . . . . . . . . . . . . . . . Combat . | . . . . . . . . . . . . . . . . . . . . . . . . . . . . . . . . Robot Hacks Applied . | . . . . . . . . . . . . . . . . . . . . . . . . . . . . . . . . Relay Couplers Released 2 | . . . . . . . . . . . . . . . 2 . . . . . . . . . . . . . . . . Machine Destruction 2 | . . . . . . . . . . . . . . . 2 . . . . . . . . . . . . . . . . Fabnet Peak Effective % . | . . . . . . . . . . . . . . . . . . . . . . . . . . . . . . . . Robots Rewired 5 | . . . 5 . . . . . . . . . . . . . . . . . . . . . . . . . . . . Allies Hacked . | . . . . . . . . . . . . . . . . . . . . . . . . . . . . . . . . Hacks Repelled . | . . . . . . . . . . . . . . . . . . . . . . . . . . . . . . . . Allies | -11 -10 -10 -10 -9 -8 -7 -7 -7 -7 -6 -6 -6 -6 -5 -5 -5 -5 -5 -4 -4 -4 -4 -4 -3 -3 -3 -2 -2 -2 -1 -1 -------- Run | Yrd Mat Min Exi Min Mat Fac Low Low Zio Pro Fac Low Dat Pro Fac Upp Upp War Pro Fac Upp Upp Zhi Pro Res Qua Res Tes Sec Acc Com Total Allies 13 | . . . 5 . . . . . 2 . 2 . . . 1 . . . . 1 . . . . . 1 1 . . . . Largest Group 5 | . . . 5 5 2 . . . 2 . 1 . . . 1 . . . . 1 . . . . . 1 1 . . . . Highest-Rated Group 82 | . . . 66 66 42 . . . 82 . 26 . . . 10 . . . . 45 . . . . . 26 10 . . . . Highest-Rated Ally 51 | . . . 21 21 21 . . . 51 . 26 . . . 10 . . . . 45 . . . . . 26 10 . . . . Total Orders 4 | . . . . . . . . . . . . . . . 2 . . . . 1 . . . . . 1 . . . . . STAY 3 | . . . . . . . . . . . . . . . 1 . . . . 1 . . . . . 1 . . . . . EXPLORE 1 | . . . . . . . . . . . . . . . 1 . . . . . . . . . . . . . . . . Ally Attacks 23 | . . . . 16 7 . . . . . . . . . . . . . . . . . . . . . . . . . . Total Damage 436 | . . . . 288 148 . . . . . . . . . . . . . . . . . . . . . . . . . . Kills 5 | . . . . 4 1 . . . . . . . . . . . . . . . . . . . . . . . . . . Allies Corrupted . | . . . . . . . . . . . . . . . . . . . . . . . . . . . . . . . . Allies Melted 1 | . . . . . . . . . . . . . . . . . . 1 . . . . . . . . . . . . . Intel | -11 -10 -10 -10 -9 -8 -7 -7 -7 -7 -6 -6 -6 -6 -5 -5 -5 -5 -5 -4 -4 -4 -4 -4 -3 -3 -3 -2 -2 -2 -1 -1 ------- Run | Yrd Mat Min Exi Min Mat Fac Low Low Zio Pro Fac Low Dat Pro Fac Upp Upp War Pro Fac Upp Upp Zhi Pro Res Qua Res Tes Sec Acc Com Robot Analysis Total 4 | . . . . . . . . . . . . . . . . . . . . . . . 4 . . . . . . . . Derelict Logs Recovered 15 | . . . . 2 . . 2 3 1 2 . 1 . 1 . . 1 . . . 1 1 . . . . . . . . . Drone Launches 2 | . . . . . . . . . . . . . . . 2 . . . . . . . . . . . . . . . . Drone Recoveries . | . . . . . . . . . . . . . . . . . . . . . . . . . . . . . . . . Exploration | -11 -10 -10 -10 -9 -8 -7 -7 -7 -7 -6 -6 -6 -6 -5 -5 -5 -5 -5 -4 -4 -4 -4 -4 -3 -3 -3 -2 -2 -2 -1 -1 ------------- Run | Yrd Mat Min Exi Min Mat Fac Low Low Zio Pro Fac Low Dat Pro Fac Upp Upp War Pro Fac Upp Upp Zhi Pro Res Qua Res Tes Sec Acc Com Turns Passed 19861 | 72 1252 283 620 570 3132 1821 81 120 368 386 1048 41 25 172 1483 145 258 496 227 1614 162 317 86 219 711 656 672 344 1034 622 824 Spaces Moved 34442 | 42 566 192 424 396 1563 3729 300 442 1168 377 2492 132 90 450 2851 441 551 1030 324 3586 520 677 171 835 1726 1538 2348 862 2257 1571 791 Core 89 | 5 . . . . 4 . . . . . 1 . . . . . . . . . . . . . . . . 3 . . 76 Treads 446 | 37 409 . . . . . . . . . . . . . . . . . . . . . . . . . . . . . . Legs . | . . . . . . . . . . . . . . . . . . . . . . . . . . . . . . . . Wheels 2964 | . 157 192 424 396 1559 236 . . . . . . . . . . . . . . . . . . . . . . . . . Hover 1 | . . . . . . . . . . . . . . . . . . . . . . . . . . . . . . 1 . Flight 30942 | . . . . . . 3493 300 442 1168 377 2491 132 90 450 2851 441 551 1030 324 3586 520 677 171 835 1726 1538 2348 859 2257 1570 715 Fastest Speed 20 | 50 140 140 140 115 110 27 27 27 27 27 27 27 27 27 27 29 29 26 26 26 26 26 26 26 21 20 20 20 22 22 22 Average Speed 38 | 146 188 140 140 131 145 37 27 27 27 27 29 27 27 28 30 29 29 28 26 26 26 26 28 26 21 20 20 23 26 29 29 Slowest Speed 900 | 160 240 140 140 140 900 177 27 27 27 27 250 28 27 30 34 29 29 90 26 99 26 26 89 26 21 21 20 200 32 120 98 Overloaded Moves 113 | . . . . . . . . . . . . . . . . . . . . . . . . . . . . . 24 31 58 Propulsion Burnouts . | . . . . . . . . . . . . . . . . . . . . . . . . . . . . . . . . Robots Hopped 335 | . . . . . . 85 . . . 1 36 2 . . 47 . 3 2 . 42 1 1 . 5 23 22 16 10 29 5 5 Cave-ins Triggered 1 | . . . . . . . . . . . . . . . . . . . . 1 . . . . . . . . . . . Teleports 98 | . . . . . . . . . . . . . . . . . . . . . . . . . . . . . 1 61 36 Exploration Rate (%) 62 | 3 95 60 88 97 80 56 53 69 89 55 37 21 75 60 47 66 62 95 57 56 70 72 62 75 19 91 71 81 73 32 20 Regions Visited 31 Branch Regions 22 Pre-discovered Areas 7 | . . . . . . . . . 1 . . . 1 . . . . . . . 1 1 3 . . . . . . . . Known Exits Taken 24 | . . . . . 1 1 1 1 1 1 1 1 1 1 1 1 1 1 1 1 1 1 1 1 1 1 1 . 1 . . Unknown Exits Taken 7 | 1 1 1 1 1 . . . . . . . . . . . . . . . . . . . . . . . 1 . 1 . Scrap Searched 23 | . . 1 . 2 . . . 1 2 1 . 2 . 2 . 1 2 . 2 . 4 1 . 2 . . . . . . . Spaces Dug 244 | . . . . . . 31 . . . . 12 1 . 2 36 . 1 . . 37 . 13 . . 29 18 19 7 14 22 2 Terrain Destroyed 1030 | . . . . 1 11 69 . . . . 14 1 . 2 36 . 2 . . 42 . 14 . . 40 19 21 9 17 23 709 Melee 212 | . . . . . . 31 . . . . 10 1 . 2 36 . 1 . . 34 . 5 . . 21 15 18 4 11 21 2 Projectile 73 | . . . . 1 11 . . . . . 4 . . . . . 1 . . 8 . 9 . . 19 4 3 5 6 2 . AOE 745 | . . . . . . 38 . . . . . . . . . . . . . . . . . . . . . . . . 707 Terrain Rammed . | . . . . . . . . . . . . . . . . . . . . . . . . . . . . . . . . Walls Destroyed . | . . . . . . . . . . . . . . . . . . . . . . . . . . . . . . . . Machines Disabled . | . . . . . . . . . . . . . . . . . . . . . . . . . . . . . . . . Actions | -11 -10 -10 -10 -9 -8 -7 -7 -7 -7 -6 -6 -6 -6 -5 -5 -5 -5 -5 -4 -4 -4 -4 -4 -3 -3 -3 -2 -2 -2 -1 -1 --------- Run | Yrd Mat Min Exi Min Mat Fac Low Low Zio Pro Fac Low Dat Pro Fac Upp Upp War Pro Fac Upp Upp Zhi Pro Res Qua Res Tes Sec Acc Com Total 39740 | 50 669 204 451 438 2237 4008 299 441 1225 659 2745 132 89 491 3357 457 641 1235 466 4147 545 800 209 831 1993 1812 2489 970 2622 1668 1360 Wait 4213 | . 22 10 . 15 348 269 . . 37 281 222 . . 37 455 17 89 165 139 476 27 107 20 2 214 247 66 67 301 46 534 Move 33778 | 41 565 191 423 395 1562 3566 299 441 1167 374 2422 127 89 449 2762 440 544 1025 323 3505 517 674 170 825 1682 1493 2319 842 2204 1560 782 Hop 298 | . . . . . . 77 . . . 1 33 2 . . 41 . 3 2 . 38 1 1 . 4 20 22 12 9 23 5 4 Pick Up 195 | 3 12 1 1 8 74 8 . . 6 . 17 . . . 16 . . 4 . 11 . . 1 . 4 2 6 6 9 4 2 Fast Attach 173 | 5 9 . 1 1 16 12 . . 4 . 8 . . . 12 . . 13 2 15 . . 7 . 5 4 22 8 13 10 6 Attach 123 | 1 1 . 2 1 21 9 . . . 2 10 2 . 1 8 . 1 1 . 14 . 2 2 . 6 3 2 2 17 4 11 Detach 97 | . 3 . 3 2 16 9 . . . 1 2 . . 1 3 . 1 4 . 11 . 2 2 . 6 3 3 3 13 4 5 Swap 39 | . 7 . 1 1 7 1 . . . . . . . 1 3 . . 2 . 6 . . . . 1 2 2 3 . 2 . Drop 250 | . 3 . . 8 76 19 . . 10 . 16 . . . 13 . . 19 2 8 . . 7 . 7 7 26 13 10 4 2 Fire 243 | . 46 1 . 7 117 . . . . . 4 . . . . . 1 . . 8 . 9 . . 20 5 3 6 13 2 1 Melee 308 | . . . . . . 38 . . 1 . 11 1 . 2 44 . 2 . . 55 . 5 . . 28 24 28 11 19 27 12 Ram 1 | . . 1 . . . . . . . . . . . . . . . . . . . . . . . . . . . . . Kick . | . . . . . . . . . . . . . . . . . . . . . . . . . . . . . . . . Crush 1 | . 1 . . . . . . . . . . . . . . . . . . . . . . . . . . . . . . Escape Stasis . | . . . . . . . . . . . . . . . . . . . . . . . . . . . . . . . . Rewire 21 | . . . 20 . . . . . . . . . . . . . . . . . . . . . . . . . . . 1 Trap . | . . . . . . . . . . . . . . . . . . . . . . . . . . . . . . . . Miscellaneous . | . . . . . . . . . . . . . . . . . . . . . . . . . . . . . . . . Route ------- -11/Scrapyard -10/Materials (discovered 4 exits: [*Mat x3] / [*Min]) -10/Mines (discovered 2 exits: [*Mat] / *Exi) -10/Exiles -9/Mines (discovered 2 exits: *Mat x2) -8/Materials (discovered 2 exits: *Fac x2) -7/Factory (discovered 2 exits: *Low x2) -7/Lower Caves -7/Lower Caves (discovered 2 exits: Fac / *Zio) -7/Zion -6/Proximity Caves -6/Factory (discovered 6 exits: *Fac x4 / *Low x2) -6/Lower Caves -6/Data Miner -5/Proximity Caves -5/Factory (discovered 6 exits: *Fac x2 / *Upp x2 / *Ext x2) -5/Upper Caves -5/Upper Caves (discovered 2 exits: *Fac / *War) -5/Warlord -4/Proximity Caves -4/Factory (discovered 3 exits: *Res x2 / *Upp) -4/Upper Caves -4/Upper Caves (discovered 2 exits: *Res / *Zhi) -4/Zhirov -3/Proximity Caves -3/Research (discovered 5 exits: Res x3 / *Qua x2) -3/Quarantine -2/Research (discovered 5 exits: *Acc x3 / *Tes x2) -2/Testing (discovered 2 exits: *Acc / *Sec) -2/Section 7 -1/Access -1/Command History --------- Turn | Location | Event 5 | -11/Scrapyard | Discovered new exit (range 16) 73 | -11/Scrapyard | Entered Materials 301 | -10/Materials | Build established: Mutant 352 | -10/Materials | Discovered new exit (range 10) 631 | -10/Materials | Discovered new exit (range 16) 874 | -10/Materials | Discovered new exit (range 9) 950 | -10/Materials | Discovered new exit (range 13) 1325 | -10/Materials | Entered Mines 1343 | -10/Mines | Met a Derelict bent on vengeance 1517 | -10/Mines | Discovered new exit (range 15) 1601 | -10/Mines | Deemed a non-threat by the Exiles lab entrance 1601 | -10/Mines | Discovered new exit (range 6) 1608 | -10/Mines | Entered Exiles 1608 | -10/Exiles | Found Exiles lab destroyed 1811 | -10/Exiles | Opened EX-Vault 1816 | -10/Exiles | Found Prototype Processor 1816 | -10/Exiles | Identified Modified TNC 2044 | -10/Exiles | Build established: Commander-Mutant 2212 | -10/Exiles | Discovered new exit (range 12) 2228 | -10/Exiles | Entered Mines 2228 | -9/Mines | Accompanied by 5 allies 2306 | -9/Mines | Learned location of 1 exit from Materials 2433 | -9/Mines | Core integrity fell below 50% 2451 | -9/Mines | Learned Materials emergency access door positions 2472 | -9/Mines | Discovered new exit (range 12) 2570 | -9/Mines | Build established: Mutant 2613 | -9/Mines | Met a Derelict shopkeep closing up shop 2693 | -9/Mines | Discovered new exit (range 10) 2798 | -9/Mines | Entered Materials 2798 | -8/Materials | Accompanied by 2 allies 2798 | -8/Materials | Evolved 4 slots: Utility x4 2799 | -8/Materials | Identified exit to Factory 2904 | -8/Materials | Lost 3 allies 3070 | -8/Materials | Lost 4 parts (1p3u) 4045 | -8/Materials | Discovered exit to Factory (range 16) 4111 | -8/Materials | Garrison activated, responded to threat 4319 | -8/Materials | Core integrity fell below 50% 5930 | -8/Materials | Entered Factory 5930 | -7/Factory | Evolved 2 slots: Propulsion x2 6080 | -7/Factory | Build established: Scavenger-Assassin 6123 | -7/Factory | Identified exit to Lower Caves 7530 | -7/Factory | Search patrols dispatched 7571 | -7/Factory | Fabricated Imp. VTOL Module (x1) 7751 | -7/Factory | Entered Lower Caves 7757 | -7/Lower Caves | Learned location of 1 exit from Factory 7815 | -7/Lower Caves | Discovered new exit (range 16) 7828 | -7/Lower Caves | Identified exit to Lower Caves 7832 | -7/Lower Caves | Entered another Lower Caves area 7857 | -7/Lower Caves | Identified exit to Factory 7896 | -7/Lower Caves | Learned location of 1 exit from Factory 7910 | -7/Lower Caves | Discovered new exit (range 14) 7913 | -7/Lower Caves | Learned Factory garrison access intel 7925 | -7/Lower Caves | Spotted B-75 Beast 7934 | -7/Lower Caves | Build established: Sprinter 7951 | -7/Lower Caves | Identified exit to Zion 7952 | -7/Lower Caves | Attracted the attention of an 0b10 checkpoint 7952 | -7/Lower Caves | Entered Zion 7966 | -7/Zion | Discovered new exit (range 12) 7969 | -7/Zion | Identified exit to Proximity Caves 8032 | -7/Zion | System corruption cleaned by Quarantine Array 8036 | -7/Zion | Learned location of 1 exit from Factory 8065 | -7/Zion | Found Prototype Device 8065 | -7/Zion | Identified Mobile Refinery Mk. CCLXVII 8078 | -7/Zion | Found Unknown Piercing Weapon 8078 | -7/Zion | Identified CR-A16's Pointy Stick 8084 | -7/Zion | Gained Derelict followers 8093 | -7/Zion | Learned location of Armory (-4) 8206 | -7/Zion | Given the Hacking Drone Bay 8206 | -7/Zion | Found Prototype Device 8206 | -7/Zion | Identified Hacking Drone Bay 8320 | -7/Zion | Entered Proximity Caves 8349 | -6/Proximity Caves | Learned Factory stockpile data 8509 | -6/Proximity Caves | Received a Behemoth hack from an annoying Tinkerer 8703 | -6/Proximity Caves | Discovered exit to Factory (range 7) 8706 | -6/Proximity Caves | Entered Factory 8706 | -6/Factory | Evolved 2 slots: Utility x2 8707 | -6/Factory | Identified exit to Factory 8709 | -6/Factory | Loaded intel: 4 garrison access locations 8725 | -6/Factory | Discovered exit to Factory (range 11) 9089 | -6/Factory | Repaired Imp. VTOL Module 9129 | -6/Factory | Repaired Imp. Utility Shielding? 9199 | -6/Factory | Repaired Imp. VTOL Module? 9322 | -6/Factory | Identified exit to Lower Caves 9393 | -6/Factory | Build established: Hacker-Sprinter 9754 | -6/Factory | Entered Lower Caves 9793 | -6/Lower Caves | A Derelict revealed a hidden shortcut to meet someone special 9795 | -6/Lower Caves | Identified exit to Data Miner 9795 | -6/Lower Caves | Learned location of 1 exit from Factory 9795 | -6/Lower Caves | Entered Data Miner 9795 | -6/Data Miner | Discovered new exit (range 6) 9797 | -6/Data Miner | Identified exit to Proximity Caves 9801 | -6/Data Miner | Met Data Miner 9809 | -6/Data Miner | Learned location of Section 7 (-2) 9809 | -6/Data Miner | Acquired the access code to Warlord's prototype stash 9814 | -6/Data Miner | Received God Mode back door access code from Data Miner 9820 | -6/Data Miner | Entered Proximity Caves 9824 | -5/Proximity Caves | Learned Factory terminal intel 9842 | -5/Proximity Caves | Spotted B-75 Beast 9894 | -5/Proximity Caves | Attracted the attention of an 0b10 checkpoint 9917 | -5/Proximity Caves | Spotter reported a threat 9987 | -5/Proximity Caves | Discovered exit to Factory (range 15) 9992 | -5/Proximity Caves | Entered Factory 9992 | -5/Factory | Evolved 2 slots: Propulsion x1, Utility x1 9993 | -5/Factory | Identified exit to Upper Caves 9993 | -5/Factory | Identified exit to Extension 9994 | -5/Factory | Identified exit to Factory 9995 | -5/Factory | Loaded intel: 26 terminal locations 10044 | -5/Factory | Discovered exit to Factory (range 16) 10262 | -5/Factory | Discovered exit to Extension (range 25) 10690 | -5/Factory | Lost 3 parts (2n1w) 10697 | -5/Factory | Discovered exit to Upper Caves (range 15) 10929 | -5/Factory | Fabricated Biomechanical Wings? 11051 | -5/Factory | Fabricated Biomechanical Wings? 11198 | -5/Factory | Cargo convoy interrupted 11332 | -5/Factory | Core integrity fell below 50% 11436 | -5/Factory | Build established: Hacker-Scout 11475 | -5/Factory | Entered Upper Caves 11590 | -5/Upper Caves | Encountered a Warlord checkpoint 11595 | -5/Upper Caves | Discovered new exit (range 14) 11620 | -5/Upper Caves | Identified exit to Upper Caves 11620 | -5/Upper Caves | Entered another Upper Caves area 11646 | -5/Upper Caves | Discovered exit to Factory (range 8) 11784 | -5/Upper Caves | Spotted B-75 Beast 11825 | -5/Upper Caves | Attracted the attention of an 0b10 outpost 11849 | -5/Upper Caves | Acquired the password to a Derelict Tinkerer's latest research 11863 | -5/Upper Caves | Discovered new exit (range 9) 11865 | -5/Upper Caves | Identified exit to Warlord 11878 | -5/Upper Caves | Entered Warlord 11889 | -5/Warlord | Discovered new exit (range 15) 11892 | -5/Warlord | Identified exit to Proximity Caves 11974 | -5/Warlord | Visited the Vortex Lab 11977 | -5/Warlord | Found Prototype Energy Cannon 11977 | -5/Warlord | Identified Vortex Cannon 11996 | -5/Warlord | Warlord's base attacked by MAIN.C 12036 | -5/Warlord | Met Warlord 12039 | -5/Warlord | Opened Warlord's prototype stash 12044 | -5/Warlord | Found Prototype Device 12044 | -5/Warlord | Identified Exp. Focal Shield 12048 | -5/Warlord | Found Prototype Hackware 12048 | -5/Warlord | Identified System Mapper 12051 | -5/Warlord | Found Prototype Device 12051 | -5/Warlord | Identified Exp. Cloaking Device 12346 | -5/Warlord | Warlord forces counterattacked 12352 | -5/Warlord | Opened side exit 12374 | -5/Warlord | Entered Proximity Caves 12389 | -4/Proximity Caves | Spotter reported a threat 12389 | -4/Proximity Caves | Spotter reported a threat 12442 | -4/Proximity Caves | Spotter reported a threat 12592 | -4/Proximity Caves | Discovered exit to Factory (range 16) 12595 | -4/Proximity Caves | Spotter reported a threat 12599 | -4/Proximity Caves | Attracted the attention of an 0b10 checkpoint 12601 | -4/Proximity Caves | Entered Factory 12601 | -4/Factory | Evolved 2 slots: Power x1, Utility x1 12602 | -4/Factory | Identified exit to Upper Caves 12633 | -4/Factory | Repaired Biomechanical Wings 12719 | -4/Factory | Found Prototype Hackware 12892 | -4/Factory | Identified Exp. System Shield 12926 | -4/Factory | Discovered new exit (range 15) 13065 | -4/Factory | Discovered new exit (range 16) 13068 | -4/Factory | Identified exit to Research 13187 | -4/Factory | Build established: Wizard-Ninja 13351 | -4/Factory | Search patrols dispatched 13593 | -4/Factory | Crushed by falling debris 13643 | -4/Factory | Repaired Broken Electron Diverter? 13785 | -4/Factory | Repaired Electron Diverter? 13870 | -4/Factory | Repaired Lyr. Medium Armor Plating? 13905 | -4/Factory | Build established: Wizard-Sprinter 14146 | -4/Factory | Search patrols dispatched 14176 | -4/Factory | Repaired Mak. Power Source 14215 | -4/Factory | Entered Upper Caves 14234 | -4/Upper Caves | Learned Factory trap positions 14234 | -4/Upper Caves | Learned Armory trap positions 14234 | -4/Upper Caves | Learned Research emergency access door positions 14234 | -4/Upper Caves | Learned Research security intel 14234 | -4/Upper Caves | Learned Armory security intel 14348 | -4/Upper Caves | Discovered new exit (range 15) 14377 | -4/Upper Caves | Identified exit to Upper Caves 14377 | -4/Upper Caves | Entered another Upper Caves area 14385 | -4/Upper Caves | Discovered exit to Research (range 14) 14515 | -4/Upper Caves | Build established: Wizard-Ninja 14686 | -4/Upper Caves | Discovered new exit (range 5) 14687 | -4/Upper Caves | Identified exit to Zhirov 14694 | -4/Upper Caves | Entered Zhirov 14694 | -4/Zhirov | Discovered new exit (range 3) 14696 | -4/Zhirov | Identified exit to Proximity Caves 14699 | -4/Zhirov | Met Zhirov 14704 | -4/Zhirov | Learned location of Quarantine (-3) 14704 | -4/Zhirov | Learned location of Testing (-2) 14704 | -4/Zhirov | Learned location of Command (-1) 14710 | -4/Zhirov | Zhirov requested help retrieving the SGEMP Prototype 14718 | -4/Zhirov | Found Alien Artifact 14718 | -4/Zhirov | Identified Integrated Reactor 14718 | -4/Zhirov | Installed Integrated Reactor, increased core energy generation (+10) 14780 | -4/Zhirov | Entered Proximity Caves 14834 | -3/Proximity Caves | Discovered exit to Research (range 5) 14999 | -3/Proximity Caves | Entered Research 14999 | -3/Research | Evolved 2 slots: Propulsion x1, Utility x1 15018 | -3/Research | Identified exit to Research 15058 | -3/Research | Identified exit to Quarantine 15686 | -3/Research | Found Prototype Launcher 15686 | -3/Research | Identified Hellfire Missile Launcher 15710 | -3/Research | Entered Quarantine 15844 | -3/Quarantine | Repaired Lyr. Medium Armor Plating 15968 | -3/Quarantine | Spotted Alpha 7 16187 | -3/Quarantine | Found Alien Launcher 16366 | -3/Quarantine | Entered Research 16366 | -2/Research | Warlord forces began assault on 0b10 16366 | -2/Research | Evolved 2 slots: Utility x2 16410 | -2/Research | Identified exit to Access 16439 | -2/Research | Identified exit to Testing 16476 | -2/Research | Research machine network offline 16644 | -2/Research | Spotted Striker 16645 | -2/Research | Spotted B-90 Cyclops 16698 | -2/Research | Build established: Wizard-Sprinter 16710 | -2/Research | Spotted Executioner 16852 | -2/Research | Met up with Warlord 16865 | -2/Research | Spotted Executioner 16925 | -2/Research | Found Prototype Processor 16925 | -2/Research | Identified Exp. Core Analyzer 16938 | -2/Research | Borebot progress halted 16940 | -2/Research | Spotted Striker 16940 | -2/Research | Spotted Striker 16940 | -2/Research | Spotted Executioner 16952 | -2/Research | Spotted Executioner 16980 | -2/Research | Spotted B-90 Cyclops 17038 | -2/Research | Entered Testing 17039 | -2/Testing | Spotted PG-OFA3DFFY36 17054 | -2/Testing | Identified Sigix Terminator 17065 | -2/Testing | Spotted Alpha 7 17107 | -2/Testing | Found Prototype Protection 17107 | -2/Testing | Identified Med. Regenerative Plating 17128 | -2/Testing | Found Prototype Processor 17135 | -2/Testing | Identified Spectral Analyzer 17240 | -2/Testing | Spotted Striker 17278 | -2/Testing | Spotted Striker 17289 | -2/Testing | Found Enh. Force Lance 17303 | -2/Testing | Discovered exit to Access (range 5) 17314 | -2/Testing | Scanned by Researcher 17325 | -2/Testing | Unstable Terrabomb Derivative detonated 17335 | -2/Testing | Spotted Fortress 17353 | -2/Testing | Discovered new exit (range 5) 17382 | -2/Testing | Entered Section 7 17655 | -2/Section 7 | Found Alien Artifact 17669 | -2/Section 7 | Identified Integrated Dissipator 17670 | -2/Section 7 | Installed Integrated Dissipator, increased core heat dissipation (+20) 17708 | -2/Section 7 | Found Alien Artifact 17714 | -2/Section 7 | Identified Integrated Mediator 17715 | -2/Section 7 | Installed Integrated Mediator, increased core attachment efficiency 17739 | -2/Section 7 | Found Alien Artifact 17745 | -2/Section 7 | Found Prototype Device 17745 | -2/Section 7 | Identified System Purifier 17777 | -2/Section 7 | Identified Core Reset Matrix 17780 | -2/Section 7 | Spotted Alpha 7 17786 | -2/Section 7 | Spotted S7 Guard 17788 | -2/Section 7 | Spotted S7 Guard 17794 | -2/Section 7 | Found Alien Artifact 18102 | -2/Section 7 | Identified Core Physics Calibrator 18115 | -2/Section 7 | Found Alien Artifact 18115 | -2/Section 7 | Identified Core Membrane 18115 | -2/Section 7 | Installed Core Membrane, gained immunity to corruption 18195 | -2/Section 7 | Spotted Alpha 7 18226 | -2/Section 7 | Spotted B-99 Colossus 18242 | -2/Section 7 | Found Alien Artifact 18242 | -2/Section 7 | Identified Core Expander 18242 | -2/Section 7 | Installed Core Expander, added new Weapon slot 18244 | -2/Section 7 | Found Core Expander 18244 | -2/Section 7 | Installed Core Expander, added new Utility slot 18246 | -2/Section 7 | Found Core Expander 18246 | -2/Section 7 | Installed Core Expander, added new Propulsion slot 18258 | -2/Section 7 | Found Alien Artifact 18258 | -2/Section 7 | Identified LRC Matter Compressor 18258 | -2/Section 7 | Installed LRC Matter Compressor, increased matter storage capacity (+125) 18324 | -2/Section 7 | Spotted Executioner 18330 | -2/Section 7 | Spotted Executioner 18337 | -2/Section 7 | Spotted Striker 18337 | -2/Section 7 | Spotted Striker 18347 | -2/Section 7 | Found Alien Artifact 18347 | -2/Section 7 | Identified Transdimensional Reconstructor 18347 | -2/Section 7 | Warped through subspace 18359 | -2/Section 7 | Found Alien Artifact 18359 | -2/Section 7 | Identified Terrabomb 18359 | -2/Section 7 | Used Terrabomb 18361 | -2/Section 7 | Found Terrabomb 18362 | -2/Section 7 | Spotted Executioner 18362 | -2/Section 7 | Spotted Executioner 18379 | -2/Section 7 | Used Terrabomb 18379 | -2/Section 7 | Spotted B-90 Cyclops 18382 | -2/Section 7 | Search patrols dispatched 18388 | -2/Section 7 | Spotted S7 Guard 18393 | -2/Section 7 | Found Alien Artifact 18393 | -2/Section 7 | Identified Navigation Efficiency Matrix 18393 | -2/Section 7 | Installed Navigation Efficiency Matrix, process failed with unexpected side effects 18416 | -2/Section 7 | Entered Access 18622 | -1/Access | Repaired Adv. Gravity Neutralizer 18666 | -1/Access | Search patrols dispatched 18742 | -1/Access | Lost 3 parts (3n) 18916 | -1/Access | Search patrols dispatched 19008 | -1/Access | Discovered new exit (range 7) 19017 | -1/Access | Spotted B-99 Colossus 19017 | -1/Access | Spotted B-99 Colossus 19038 | -1/Access | Entered Command 19065 | -1/Command | Lost 4 parts (2n2u) 19107 | -1/Command | Disengaged cave seal 19107 | -1/Command | Derelicts emerged from the dark tunnel 19107 | -1/Command | Welcomed Warlord to Command 19255 | -1/Command | Derelicts emerged from the dark tunnel 19392 | -1/Command | Derelicts emerged from the dark tunnel 19529 | -1/Command | Derelicts emerged from the dark tunnel 19643 | -1/Command | Spotted M Guard 19643 | -1/Command | Spotted M Guard 19643 | -1/Command | Spotted Combat Programmer 19643 | -1/Command | Spotted Combat Programmer 19684 | -1/Command | Spotted Striker 19687 | -1/Command | Spotted Alpha 7 19691 | -1/Command | Spotted Executioner 19716 | -1/Command | Lost 8 allies 19733 | -1/Command | Repaired Enh. Force Lance 19766 | -1/Command | Met MAIN.C 19776 | -1/Command | 0b10 Conduit disabled 19782 | -1/Command | Fired Sigix Terminator 19814 | -1/Command | Core integrity fell below 50% 19852 | -1/Command | Core integrity fell below 20% 19862 | -1/Command | Destroyed by M Guard with Graviton Cannon Last Messages --------------- 19806_ Mic. Antimatter Reactor destroyed. 19807_ Dual-blade Saw follow-up attack on MAIN.C. 19810_ Dual-blade Saw destroyed. 19810_ Enh. Force Lance destroyed. 19821_ Navigation matrix triggers involuntary quantum shift. 19835_ System Mapper destroyed. 19837_ Navigation matrix triggers involuntary quantum shift. 19850_ Penetrated by Slug. 19851_ Adv. System Shield destroyed. 19853_ Knocked back. 19853_ Attempting to rewire Warlord D3-CKR. 19853_ Warlord D3-CKR cannot be rewired. 19855_ Adv. Melee Analysis Suite destroyed. 19857_ Penetrated by Slug. 19860_ The unstable cave ceiling collapses. 19860_ Penetrated by Slug. 19860_ Slug penetrates Earth. 19860_ K-01 Serf collects debris. 19862_ Navigation matrix triggers involuntary quantum shift. [Achievement: I Think I Know What's Going On] Map ----- +----------------------------------------------------+ | ?????????????????????????????????????????????????? | | ?????????????????????????????????????????????????? | | ?????????????????????????????????????????????????? | | ?????????????????????????????????????#???????????? | | ?????????????????????????????????????# ?????????? | | ?????????????????????????????????????# ?????????? | | ?????????????????????????????????????# ???????? | | ?????????????????????????????????????# ??????? | | ?????????????????????????????????????# %???????? | | ?????????????????????????????????????# ???????? | | ?????????????????????????????????????# ???????? | | ?????????????????????????????????????# ????????? | | ?????????????????????????????????????# ????????? | | ##???????????????????????????????????? ????????? | | "####?????????????????????????????????# ##???????? | | #????????????????????????????????##/"######### | | """#######???????????????????????????#!% % | | #??????????????????????????## = | | #??????????????????????????#" ! """" | | #??????????????????????????## """" | | """### #????????????????????#######; "" | | #?# #????????????????###?# # # " | | "###?# ########?######### ### # | | ##???# T# # % ###% ## # | | ?????# ## W #;#%W ;#; W %W !# ### ### | | ?????# ] % %@% |]! [* # | | ?????# % Y % !| E ### | | ?????# % % %]Y % %% # # | | ?????# % # # | | ?????# k | | ?????# # # W # W W # ## # # | | ?????###### #% ## ### ; # ####### # | | ??????????###### ##?######### # ## # | | ????????????# #####??????????# ## # # | | ????????????# ##??????????????### # # | | ????????????# #?????????????????### | | ????????????# #???????????????????## # | | ????????????# #????????????????????### # | | ????????????# #????????????????????# % | | ????????????# #????????????????????## | | ????????????# #??????????????????#########+##### | | ????????????# #??????????????????# ] | | ????????????# #??????????????????# | | ????????????# #??????????????????# """" | | ????????????# #??????????????????# ""R" | | ????????????# #??????????????????# "" " | | ????????????# #??????????????????# | | ????????????# #??????????????????# | | ????????????#####??????????????????############### | | ?????????????????????????????????????????????????? | +----------------------------------------------------+ Best States ------------- Heat Dissipation 72 Coolant Potential 65 Energy Generation 49 Energy Capacity 400 Matter Stores 425 Matter Capacity 425 Sight Range 23 Robot Scan Range 18 Terrain Scan Range 16 Terrain Scan Density 85 Jamming Range 16 Cloak Strength 4 Additional Mass Support 16 Armor Coverage 225 Power Shielding 90 Propulsion Shielding 33 Utility Shielding 66 Weapon Cycling 15 Melee Speed Boost 30 Phase Shifting 15 Evasion (%) 90 Targeting Accuracy 16 Melee Accuracy 16 Core Analysis 8 Armor Integrity Analysis 40 Recoil Reduction 2 Energy Filtering 50 Offensive Hacking 44 Defensive Hacking 52 Item Schematics ----------------- Imp. VTOL Module | -7/Factory | Scanalyzed Focal Shield | -7/Zion | Archive Component Analysis Suite | -7/Zion | Archive Hvy. Riot Gun | -7/Zion | Archive Adv. Heat Sink | -7/Zion | Archive Adv. Cooling System | -7/Zion | Archive Adv. Sensor Array | -7/Zion | Archive Arc Projector | -7/Zion | Archive Imp. Trap Scanner | -7/Zion | Archive Core Analyzer | -7/Zion | Archive Imp. Shock Absorption System | -7/Zion | Archive Greatsword | -7/Zion | Archive Enh. Optical Array | -7/Zion | Archive Hpw. Shock Rifle | -7/Zion | Archive Mak. Sword | -7/Zion | Archive Biomechanical Wings | -6/Factory | Scanalyzed Combat Drone Bay | -6/Data Miner | Free Lgt. Regenerative Plating | -6/Data Miner | Free Cld. Nuclear Pulse Thruster | -6/Data Miner | Free Imp. Matter Compressor | -6/Data Miner | Free Plasma Sword | -6/Data Miner | Free Imp. Antigrav System | -6/Data Miner | Free Adv. Thermal Shield | -6/Data Miner | Free Hvy. Gauss Cannon | -6/Data Miner | Free Linear Accelerator | -6/Data Miner | Free Exp. System Shield | -4/Factory | Scanalyzed Electron Diverter | -4/Factory | Scanalyzed Graphene Brace | -4/Factory | Scanalyzed Adv. System Shield | -4/Factory | Scanalyzed Assault Drone Bay | -4/Zhirov | Free Exp. Heat Sink | -4/Zhirov | Free Exp. Optical Array | -4/Zhirov | Free Imp. Arc Thrower | -4/Zhirov | Free Hvy. Regenerative Plating | -2/Testing | Hacked Com. Linear Accelerator | -2/Testing | Archive Prc. Energy Filter | -2/Testing | Archive Cld. Impulse Thruster | -2/Testing | Archive Hvy. Gatling Laser | -2/Testing | Archive Adv. Energy Well | -2/Testing | Archive Hvy. Antimatter Reactor | -2/Testing | Archive Imp. Q-thruster | -2/Testing | Archive Exp. Energy Well | -2/Testing | Archive Exp. Q-thruster | -2/Testing | Scanalyzed Robot Schematics ------------------ T-07 Excavator | -7/Zion | Archive L-31 Rogue | -7/Zion | Archive B-36 Bruiser | -7/Zion | Archive G-73 Enforcer | -7/Zion | Archive L-41 Fighter | -6/Data Miner | Free Y-64 Sentinel | -6/Data Miner | Free A-15 Conveyor | -6/Data Miner | Free B-60 Warrior | -6/Data Miner | Free A-27 Freighter | -2/Testing | Archive H-88 Terminator | -2/Testing | Archive Fabricated ------------ Imp. VTOL Module | x1 | -7/Factory Biomechanical Wings | x1 | -5/Factory Biomechanical Wings | x1 | -5/Factory Alien Tech Used ----------------- Integrated Reactor Integrated Dissipator Integrated Mediator Core Physics Calibrator Core Membrane Core Expander LRC Matter Compressor Transdimensional Reconstructor Terrabomb Navigation Efficiency Matrix Sigix Terminator Achievements -------------- Batter Up I Think I Know What's Going On Meet Your Maker Nope Ooh, Shiny! Watch This! Challenges ------------ None Game ------ Seed HelicalBiomechanicalMallet Manual? 0 Play Time 11:50:20 Cumulative 81.0 hours Start 2024.04.20 @ 19:10:10 End 2024.04.26 @ 00:38:07 Sessions 21 Manual Loads 0 Difficulty Rogue Special Mode None Game No. 68 Rogue 68 Adventurer 0 Explorer 0 Win Type - Total 6 Types 5/0/1/0/0/0/0/0/0 Lore% 50 Gallery% 44 Achievement% 44 Wizard Run 0 Options --------- Layout 0 ASCII 0 Keyboard 1 Movement Vi Keybinds 0 Fullscreen 2 Font 16/SmallcapsGlow Map View 64x51 Zoom Use 0% Tactical HUD 1 Map Filters NONE Filters NONE Steam X RUN: 8e214b33-7284-485b-97e3-c67f18af1bb2